bitfinex/quotes_ETHUSD_20250721
["timestamp","ask_amount","ask_price","bid_price","bid_amount"]
[1753122498988,0.002,3789.2,3789.0,4.184]
[1753122499145,0.002,3789.2,3788.9,4.34159288]
[1753122500843,1.2661,3789.1,3788.1,2.63982484]
[1753122501115,2.63958311,3788.5,3788.1,4.184]
[1753122501320,0.7981,3788.3,3788.0,4.184]
[1753122501682,0.7981,3788.3,3787.9,0.1312]
[1753122501980,0.7981,3788.3,3787.9,4.3152]
[1753122502189,14.5,3788.2,3788.0,2.63986399]
[1753122502478,14.5,3788.2,3788.0,2.63991552]
[1753122502681,14.5,3788.2,3787.9,2.63996404]
[1753122502888,14.5,3788.2,3787.9,3.24336404]
[1753122503109,14.5,3788.2,3787.9,0.1312]
[1753122503418,14.5,3788.2,3787.9,2.77115294]
[1753122503795,14.5,3788.2,3788.0,2.63991541]
[1753122503995,14.5,3788.2,3787.9,2.77117893]
[1753122504901,14.5,3788.2,3787.9,0.1312]
[1753122505601,0.7883,3788.1,3787.9,0.1312]
[1753122505799,1.38769636,3788.1,3787.5,4.185]
[1753122505980,3.0,3788.0,3787.5,4.185]
[1753122506182,0.02639636,3787.9,3787.5,4.185]
[1753122506513,0.46819636,3787.9,3787.5,4.185]
[1753122506810,14.5,3787.8,3787.5,4.185]
[1753122507287,14.5,3787.8,3787.5,2.64125068]
[1753122507495,14.5,3787.8,3787.5,0.001]
[1753122508507,0.1312,3788.1,3787.6,4.6562]
[1753122508709,0.1312,3788.2,3787.6,4.316]
[1753122508911,0.15759636,3788.2,3787.7,4.184]
[1753122509223,14.5,3788.1,3787.7,4.184]
[1753122509527,0.02639636,3788.0,3787.7,4.184]
[1753122509720,0.1312,3788.2,3787.7,4.184]
[1753122509897,0.573,3788.2,3787.7,4.184]
[1753122510097,14.52639636,3788.1,3787.7,4.184]
[1753122510299,14.5,3788.1,3787.7,4.185]
[1753122511105,14.5,3788.1,3787.8,2.64003183]
[1753122511506,14.5,3788.1,3787.8,3.11223183]
[1753122512047,14.5,3788.1,3787.7,6.82511208]
[1753122512397,14.5,3788.1,3787.8,2.64002415]
[1753122512826,0.1312,3788.2,3787.8,2.64002415]
[1753122513131,0.1312,3788.2,3787.9,2.63998433]
[1753122513326,0.1312,3788.2,3787.8,2.64004062]
[1753122513508,14.6312,3788.2,3787.8,2.64004062]
[1753122513703,14.6312,3788.2,3787.7,4.6572]
[1753122513909,15.073,3788.2,3787.7,4.185]
[1753122514104,15.073,3788.2,3787.8,4.184]
[1753122514306,3.10804522,3788.1,3787.8,4.184]
[1753122514501,3.573,3788.0,3787.8,4.184]
[1753122514701,0.1312,3788.0,3787.8,6.82405491]
[1753122514933,14.5,3788.2,3787.9,0.4722]
[1753122515300,14.5,3788.2,3787.9,3.11217596]
[1753122515696,14.5,3788.2,3787.9,0.4722]
[1753122515936,0.7736,3789.1,3788.1,2.63984583]
[1753122516193,0.1312,3788.7,3788.2,7.2959636]
[1753122516464,0.1312,3789.1,3788.5,0.1312]
[1753122516636,0.1312,3789.1,3788.6,4.184]
[1753122516837,0.1312,3789.1,3788.7,2.63940708]
[1753122517040,0.1312,3789.1,3788.6,4.184]
[1753122517259,3.0,3788.9,3788.6,4.184]
[1753122517643,3.1312,3789.1,3788.6,4.184]
[1753122517844,0.02639636,3789.0,3788.6,4.184]
[1753122518245,14.5,3788.9,3788.6,4.184]
[1753122518458,14.5,3788.9,3788.8,2.6393581]
[1753122519171,14.5,3788.9,3788.6,4.184]
[1753122519468,14.5,3788.9,3788.6,6.82347264]
[1753122519671,14.5,3788.9,3788.6,4.184]
[1753122519878,14.5,3788.9,3788.6,6.82349044]
[1753122520876,14.5,3788.9,3788.7,0.4722]
[1753122521178,14.5,3788.9,3788.6,6.8234555]
[1753122521343,14.5,3788.9,3788.6,7.2956555]
[1753122521544,0.1312,3789.1,3788.7,0.4722]
[1753122521852,0.1312,3789.1,3788.8,3.11153203]
[1753122522172,0.1312,3789.1,3788.9,4.184]
[1753122522478,0.1312,3789.1,3788.9,4.6562]
[1753122522662,14.6312,3789.1,3789.0,2.63921879]
[1753122522863,0.002,3789.2,3789.1,2.63914913]
[1753122523262,0.002,3789.2,3789.1,3.11134913]
[1753122524666,0.002,3789.2,3789.1,7.29434913]
[1753122524867,0.002,3789.2,3789.1,8.47832597]
[1753122525850,1e-08,3789.2,3789.1,19.90256696]
[1753122526565,1e-08,3789.2,3789.1,22.90256696]
[1753122527382,1e-08,3789.2,3789.1,14.38342597]
[1753122527584,1e-08,3789.2,3789.1,25.05256696]
[1753122527789,1e-08,3789.2,3789.1,29.23456696]
[1753122529602,0.022,3789.9,3789.8,14.12240266]
[1753122529801,0.022,3789.9,3789.8,19.98051751]
[1753122530022,0.022,3789.9,3789.8,20.56171751]
[1753122530176,1e-08,3790.0,3789.9,2.63859204]
[1753122530373,1e-08,3790.0,3789.9,3.92957796]
[1753122531476,1e-08,3790.0,3789.9,3.90319204]
[1753122531674,1e-08,3790.0,3789.9,5.42018348]
[1753122531877,1e-08,3790.0,3789.9,16.11571039]
[1753122532085,1e-08,3790.0,3789.9,16.08932447]
[1753122532276,1e-08,3790.0,3789.9,9.60118348]
[1753122536489,1e-08,3790.0,3789.9,5.42018348]
[1753122536695,1e-08,3790.0,3789.9,9.60118348]
[1753122539708,0.002,3790.7,3789.9,9.60118348]
[1753122539709,1e-08,3790.7,3790.6,3.43770478]
[1753122540007,1e-08,3790.9,3790.8,13.30710659]
[1753122540184,1e-08,3790.9,3790.8,17.61830659]
[1753122540516,1e-08,3790.9,3790.8,18.06830659]
[1753122542817,1e-08,3790.9,3790.8,18.85140659]
[1753122543111,1e-08,3790.9,3790.8,8.1812656]
[1753122543313,1e-08,3790.9,3790.8,19.96671372]
[1753122543509,1e-08,3790.9,3790.8,22.96671372]
[1753122543814,1e-08,3791.6,3791.5,2.63747857]
[1753122544012,1e-08,3791.6,3791.5,17.64319434]
[1753122544183,1e-08,3791.6,3791.5,18.06681956]
[1753122544384,1e-08,3791.6,3791.5,20.21557329]
[1753122544584,1e-08,3791.6,3791.5,16.03657329]
[1753122544803,1e-08,3791.6,3791.5,20.21457329]
[1753122547417,1e-08,3791.6,3791.5,6.81547857]
[1753122548406,1e-08,3791.6,3791.5,7.26547857]
[1753122548816,1e-08,3791.6,3791.5,3.08747857]
[1753122549016,1e-08,3791.6,3791.5,7.29085335]
[1753122549317,1e-08,3791.6,3791.5,7.26447857]
[1753122549513,1e-08,3791.6,3791.5,9.3216023]
[1753122550930,0.02,3791.9,3791.8,2.63726989]
[1753122551114,0.02,3791.9,3791.8,17.50978357]
[1753122551421,0.02,3791.9,3791.8,17.93341088]
[1753122551785,0.02,3791.9,3791.8,17.68341088]
[1753122551986,0.002,3792.4,3792.3,2.63692218]
[1753122552191,0.002,3792.4,3792.3,6.8392914]
[1753122552416,0.002,3792.4,3792.3,7.26292218]
[1753122552902,0.002,3792.4,3792.3,6.81292218]
[1753122553102,0.002,3792.4,3792.3,2.63692218]
[1753122553424,0.002,3792.4,3792.3,6.8392914]
[1753122553593,0.002,3792.4,3792.3,6.81292218]
[1753122554240,0.002,3792.4,3792.3,2.63692218]
[1753122554537,0.002,3792.4,3792.3,6.8392914]
[1753122554692,0.002,3792.4,3792.3,6.81292218]
[1753122554891,0.002,3792.4,3792.3,6.81192218]
[1753122556922,0.002,3792.4,3788.6,1.32715821]
[1753122556923,0.7612,3792.3,3791.0,0.8021]
[1753122557088,0.4503,3792.2,3791.1,4.20137756]
[1753122557289,0.7612,3792.3,3792.1,2.63706125]
[1753122557526,0.7612,3792.3,3792.2,6.81199171]
[1753122557910,0.7612,3792.3,3792.2,4.175]
[1753122558315,0.7612,3792.3,3792.2,6.81199171]
[1753122559150,1.2115,3792.3,3792.2,4.175]
[1753122560409,1.89652185,3792.3,3792.0,0.1312]
[1753122560610,0.4503,3792.2,3792.0,0.1312]
[1753122560906,0.7976,3792.1,3792.0,0.1312]
[1753122561099,1.2479,3792.1,3792.0,4.3052]
[1753122561292,1.2479,3792.1,3790.9,7.00457329]
[1753122561521,3.08748534,3792.0,3791.6,0.1312]
[1753122561693,3.75281412,3792.0,3791.7,4.174]
[1753122561893,0.4503,3791.9,3791.7,4.174]
[1753122562133,0.4503,3791.9,3791.8,2.63726989]
[1753122562295,0.7976,3792.1,3791.7,4.174]
[1753122562804,0.7976,3792.1,3791.8,2.76841812]
[1753122563122,0.7976,3792.1,3791.9,4.174]
[1753122563309,0.7976,3792.1,3792.0,2.6635021]
[1753122563517,0.7976,3792.1,3792.0,2.7683308]
[1753122565547,0.7579,3792.4,3792.1,2.6370138]
[1753122565708,0.7579,3792.4,3792.2,4.173]
[1753122565898,1.2082,3792.4,3792.2,4.173]
[1753122566100,3.7579,3792.4,3792.2,4.173]
[1753122566330,0.4503,3792.3,3792.2,4.173]
[1753122568200,2.63699171,3792.2,3791.5,2.63742159]
[1753122568509,3.4503,3792.1,3791.8,0.1312]
[1753122568713,2.63732846,3791.8,3790.6,0.8324]
[1753122568921,0.02639636,3791.8,3791.2,0.1312]
[1753122569121,2.637467,3791.6,3791.3,4.173]
[1753122569342,0.4503,3791.5,3791.3,4.173]
[1753122569530,0.4503,3791.5,3791.2,0.1312]
[1753122569831,0.4503,3791.5,3791.3,4.173]
[1753122571230,0.4503,3791.4,3791.3,4.173]
[1753122572484,0.4503,3791.4,3790.8,2.63796424]
[1753122572485,0.4503,3791.4,3790.8,2.63789794]
[1753122572616,0.7762,3791.3,3791.0,0.1312]
[1753122572817,1.2265,3791.3,3791.0,0.1312]
[1753122573038,0.4503,3791.2,3791.0,2.76902374]
[1753122573350,0.4503,3791.2,3791.0,0.1312]
[1753122574333,0.4503,3791.2,3791.0,2.76902491]
[1753122574860,0.4503,3791.2,3791.0,0.1312]
[1753122575626,0.4503,3791.1,3791.0,0.1312]
[1753122575832,0.4503,3791.1,3790.9,4.172]
[1753122576062,0.47669636,3791.0,3790.3,0.001]
[1753122576360,0.7529,3790.8,3790.4,4.3032]
[1753122576557,0.4503,3790.7,3790.4,4.3032]
[1753122576731,0.4503,3790.6,3790.4,4.3032]
[1753122576932,0.4503,3790.6,3790.4,6.94139468]
[1753122577154,0.7529,3790.8,3790.4,6.94139468]
[1753122577363,1.2032,3790.8,3790.4,4.3032]
[1753122577542,0.7529,3790.8,3790.4,4.3032]
[1753122577747,0.4503,3790.7,3790.4,4.3032]
[1753122578566,0.4503,3790.7,3790.5,4.172]
[1753122579073,0.4503,3790.6,3790.5,4.172]
[1753122579361,0.4503,3790.6,3790.5,4.171]
[1753122581965,0.4503,3790.6,3790.3,0.001]
[1753122581966,2.33637964,3790.6,3790.3,0.001]
[1753122582264,5.63824398,3790.4,3790.3,0.001]
[1753122582466,3.0,3790.4,3790.3,0.001]
[1753122582843,3.4503,3790.4,3790.3,0.001]
[1753122583936,6.63854398,3790.4,3790.3,0.001]
[1753122584153,8.25408561,3790.4,3790.3,0.001]
[1753122584549,8.3690519,3790.4,3790.3,0.001]
[1753122584749,19.56584163,3790.4,3790.3,0.001]
[1753122584951,17.9503,3790.4,3790.3,0.001]
[1753122585662,20.58854398,3790.4,3790.3,0.001]
[1753122585846,17.9503,3790.4,3790.3,0.001]
[1753122587238,14.9503,3790.4,3790.3,0.001]
[1753122587954,17.58854398,3790.4,3790.3,0.001]
[1753122588156,19.98879693,3790.4,3790.3,0.001]
[1753122588468,16.82305295,3790.4,3790.3,0.001]
[1753122589369,20.84459693,3790.4,3790.3,0.001]
[1753122589668,35.02462522,3790.4,3790.3,0.001]
[1753122589836,4.02168319,3790.2,3790.1,0.02]
[1753122590036,7.04807955,3790.2,3790.1,0.02]
[1753122590255,11.66448319,3790.2,3790.1,0.02]
[1753122590460,26.16448319,3790.2,3790.1,0.02]
[1753122591181,21.99448319,3790.2,3790.1,0.02]
[1753122591381,28.62775591,3790.2,3790.1,0.02]
[1753122593581,25.43837272,3790.2,3790.1,0.02]
[1753122593780,25.98837272,3790.2,3790.1,0.02]
[1753122593966,28.62675591,3790.2,3790.1,0.02]
[1753122594569,28.62775591,3790.2,3790.1,0.02]
[1753122595290,35.1649842,3790.2,3790.1,0.02]
[1753122595451,3.4520402,3789.4,3789.3,0.001]
[1753122595646,4.08752627,3789.4,3789.3,0.001]
[1753122595874,4.56032627,3789.4,3789.3,0.001]
[1753122596977,23.22932627,3789.4,3789.3,0.001]
[1753122597187,23.75292991,3789.4,3789.3,0.001]
[1753122598793,19.11112991,3789.4,3789.3,0.001]
[1753122598952,18.5020402,3789.4,3789.3,0.001]
[1753122599289,14.5,3789.4,3789.3,0.001]
[1753122600345,2.76999605,3789.7,3789.3,0.001]
[1753122600572,0.02639636,3789.6,3789.3,0.001]
[1753122600780,2.6389402,3789.4,3789.3,0.001]
[1753122600986,11.21613656,3789.4,3789.3,0.001]
[1753122601155,5.63907948,3789.2,3789.1,0.021]
[1753122601356,3.47133678,3788.4,3787.6,7.127]
[1753122601593,17.99773314,3788.4,3787.6,0.001]
[1753122601750,20.45196516,3788.4,3787.6,0.001]
[1753122601953,20.92476516,3788.4,3787.6,0.001]
[1753122602158,20.45196516,3788.4,3787.6,0.001]
[1753122602359,14.6312,3788.4,3788.0,0.4741]
[1753122602581,0.1312,3788.4,3788.0,0.4741]
[1753122602773,2.77083678,3788.4,3787.7,0.132]
[1753122602975,18.32003314,3788.4,3787.6,0.001]
[1753122603197,21.19059004,3788.4,3787.6,0.001]
[1753122604195,25.35959004,3788.4,3787.6,0.001]
[1753122604894,21.19059004,3788.4,3787.6,0.001]
[1753122605064,24.88579004,3788.4,3787.6,0.4751]
[1753122605262,15.9822,3788.4,3787.7,1.3062]
[1753122605460,0.7705,3789.4,3788.3,5.4752]
[1753122605661,0.7705,3789.8,3788.4,0.50049636]
[1753122605858,0.1312,3789.4,3788.7,2.77055999]
[1753122606171,0.1312,3789.4,3788.9,2.63928025]
[1753122606373,0.7705,3789.2,3788.3,0.001]
[1753122606561,2.63963678,3788.4,3788.3,0.001]
[1753122606763,0.02639636,3788.4,3788.3,0.001]
[1753122607293,2.66603314,3788.4,3788.3,0.001]
[1753122608258,5.66603314,3788.4,3788.3,0.001]
[1753122609295,3.02639636,3788.4,3788.3,0.001]
[1753122609498,5.66603314,3788.4,3788.3,0.001]
[1753122610001,9.31636707,3788.4,3788.3,0.001]
[1753122610301,3.18977614,3788.2,3788.1,0.02]
[1753122610510,8.1689725,3788.2,3788.1,0.02]
[1753122610706,8.14257614,3788.2,3788.1,0.02]
[1753122611006,10.55595058,3788.2,3788.1,0.02]
[1753122611777,13.55595058,3788.2,3788.1,0.02]
[1753122613471,5.63977614,3788.2,3788.1,0.02]
[1753122613901,6.9848725,3788.2,3788.1,0.02]
[1753122614104,21.93127614,3788.2,3788.1,0.02]
[1753122615990,3.99262461,3787.7,3787.6,0.001]
[1753122616193,11.58628343,3787.7,3787.6,0.001]
[1753122616399,11.99118707,3787.7,3787.6,0.001]
[1753122619707,12.19136574,3787.7,3787.6,0.001]
[1753122620599,12.19136574,3787.7,3786.9,0.001]
[1753122620600,6.19061262,3787.0,3786.9,1e-08]
[1753122620784,2.64082182,3786.7,3786.6,1e-08]
[1753122620977,2.64165896,3785.5,3785.3,0.4585]
[1753122621183,2.6681251,3785.4,3785.3,0.4585]
[1753122621884,2.6681251,3785.4,3785.3,0.001]
[1753122623112,7.3861251,3785.4,3785.3,0.001]
[1753122623305,7.35972874,3785.4,3785.3,0.001]
[1753122624203,4.718,3785.4,3785.3,0.001]
[1753122624423,10.3861251,3785.4,3785.3,0.001]
[1753122624626,11.66250078,3785.4,3785.3,0.001]
[1753122625485,12.09380078,3785.4,3785.3,0.001]
[1753122625887,12.91880078,3785.4,3785.3,0.001]
[1753122626489,27.41880078,3785.4,3785.3,0.001]
[1753122627029,22.218,3785.4,3785.3,0.001]
[1753122627185,18.05,3785.4,3785.3,0.001]
[1753122627385,22.218,3785.4,3785.3,0.001]
[1753122627585,24.85972874,3785.4,3785.3,0.001]
[1753122628389,25.29102874,3785.4,3785.3,0.001]
[1753122628718,27.91856267,3785.4,3785.3,0.001]
[1753122629014,22.218,3785.4,3785.3,0.001]
[1753122629421,4.168,3785.6,3785.3,1.2791]
[1753122629621,0.132,3785.4,3785.3,0.8216]
[1753122629988,6.32372874,3785.4,3785.3,0.001]
[1753122630384,6.3501251,3785.4,3785.3,0.001]
[1753122630590,8.97765903,3785.4,3785.3,0.001]
[1753122630897,8.95126267,3785.4,3785.3,0.001]
[1753122632407,13.11926267,3785.4,3785.3,0.001]
[1753122632609,14.37056267,3785.4,3785.3,0.001]
[1753122633408,28.87056267,3785.4,3785.3,0.001]
[1753122635191,30.45156267,3785.4,3785.3,0.001]
[1753122635625,24.27126267,3785.4,3785.3,0.001]
[1753122635948,28.43926267,3785.4,3785.3,0.001]
[1753122636121,24.27126267,3785.4,3785.3,0.001]
[1753122636500,21.44172874,3785.4,3785.3,0.001]
[1753122636705,21.99172874,3785.4,3785.3,0.001]
[1753122636899,24.99172874,3785.4,3785.3,0.001]
[1753122638026,24.99172874,3785.4,3785.3,0.4585]
[1753122638322,24.99172874,3785.4,3785.3,0.001]
[1753122638489,27.61926267,3785.4,3785.3,0.001]
[1753122638894,17.632,3785.4,3785.3,0.001]
[1753122639114,24.44172874,3785.4,3785.3,0.001]
[1753122639900,24.99172874,3785.4,3785.3,0.001]
[1753122640693,17.632,3785.4,3785.3,0.001]
[1753122640894,21.799,3785.4,3785.3,0.4585]
[1753122641298,24.44072874,3785.4,3785.3,0.4585]
[1753122641512,21.799,3785.4,3785.3,0.4585]
[1753122642318,24.44072874,3785.4,3785.3,0.4585]
[1753122642532,21.799,3785.4,3785.3,0.4585]
[1753122642701,14.632,3785.4,3785.3,0.4585]
[1753122642898,0.132,3785.4,3785.3,4.19224172]
[1753122643219,0.75439126,3787.0,3785.4,0.7817]
[1753122643220,0.132,3786.3,3785.4,0.7817]
[1753122643406,0.132,3786.3,3785.7,0.132]
[1753122643606,0.132,3786.3,3785.8,0.4575]
[1753122643806,0.132,3786.3,3785.9,0.4575]
[1753122644113,0.132,3786.3,3786.0,0.7624]
[1753122644315,0.132,3786.3,3786.1,0.4575]
[1753122644516,0.02639636,3786.2,3786.1,0.4575]
[1753122645228,0.132,3786.3,3786.1,0.4575]
[1753122645429,2.7731152,3786.3,3786.1,0.4575]
[1753122645632,3.132,3786.3,3786.2,0.4575]
[1753122646716,2.64121541,3786.2,3786.0,0.7624]
[1753122646919,0.02639636,3786.2,3786.0,0.7624]
[1753122647119,0.02639636,3786.2,3786.1,0.4668]
[1753122647732,2.66756692,3786.2,3786.1,0.4668]
[1753122647931,8.97666121,3786.2,3785.7,0.132]
[1753122648120,0.132,3786.0,3785.3,0.001]
[1753122648448,0.132,3785.6,3785.3,0.001]
[1753122648632,2.64165896,3785.5,3785.3,0.001]
[1753122648833,2.64172874,3785.4,3785.3,0.001]
[1753122649028,0.15839636,3785.6,3785.4,0.4668]
[1753122649329,0.15839636,3785.6,3785.5,0.4668]
[1753122649730,4.165,3786.3,3785.6,0.7529]
[1753122649942,3.0,3786.3,3785.7,3.13471686]
[1753122650128,0.02639636,3786.3,3785.7,2.66791686]
[1753122650329,0.02639636,3786.3,3785.8,0.4668]
[1753122650721,0.02639636,3786.3,3785.9,0.4668]
[1753122650722,2.66754676,3786.3,3785.9,0.4668]
[1753122650946,2.66754676,3786.3,3785.6,0.7529]
[1753122651153,2.66754676,3786.3,3786.0,0.4668]
[1753122651538,0.02639636,3786.3,3786.0,0.4668]
[1753122652047,2.66751179,3786.3,3786.0,0.4668]
[1753122652757,2.66751179,3786.3,3786.1,0.4668]
[1753122653058,0.02639636,3786.3,3786.1,0.4668]
[1753122653494,3.19144962,3785.8,3785.7,0.02641519]
[1753122653643,6.19172874,3785.4,3785.2,0.001]
[1753122653841,10.3821251,3785.4,3785.2,0.001]
[1753122654052,11.77861595,3785.4,3785.2,0.001]
[1753122654558,12.22221595,3785.4,3785.2,0.001]
[1753122654770,2.64228716,3784.6,3783.7,0.001]
[1753122654971,3.19284581,3783.8,3783.7,0.001]
[1753122655177,0.55,3783.5,3782.0,0.7576]
[1753122655471,3.0,3783.1,3782.5,0.4668]
[1753122655675,3.0,3783.1,3782.0,0.7576]
[1753122655676,2.64402686,3782.2,3782.0,0.7576]
[1753122655874,2.64403373,3782.1,3782.0,1.2244]
[1753122656038,2.64428899,3781.8,3781.5,0.4668]
[1753122656234,2.64428899,3781.8,3781.6,0.4668]
[1753122656547,2.64410364,3782.0,3781.7,0.4668]
[1753122656748,0.02639636,3781.9,3781.8,0.4668]
[1753122656974,2.64417356,3781.9,3781.8,0.4668]
[1753122657180,2.6443232,3781.7,3781.5,0.7576]
[1753122657361,0.02639636,3782.4,3781.5,0.7576]
[1753122657566,3.0,3781.9,3780.5,0.7576]
[1753122657785,0.02639636,3781.8,3780.7,0.02645012]
[1753122657937,2.64459721,3781.3,3780.7,0.02645012]
[1753122658133,2.64459721,3781.3,3780.5,0.4668]
[1753122658134,2.6448313,3781.0,3780.5,0.4668]
[1753122658337,0.1974571,3781.3,3779.9,2.64555524]
[1753122658338,0.02639636,3780.9,3780.8,2.64494286]
[1753122658661,4.165,3781.3,3780.8,1.2256]
[1753122658662,0.02639636,3781.1,3780.8,1.2256]
[1753122658836,0.02639636,3781.1,3780.9,0.4668]
[1753122659044,3.0,3781.6,3780.9,0.4668]
[1753122659265,0.02639636,3781.5,3780.9,0.4668]
[1753122659598,0.55,3782.3,3781.5,2.64442047]
[1753122659775,0.55,3782.1,3781.2,0.4668]
[1753122659974,0.57639636,3782.0,3780.8,0.7588]
[1753122660151,0.57639636,3782.0,3780.7,0.4668]
[1753122660152,0.55,3781.6,3780.7,0.4668]
[1753122660350,0.02639636,3781.5,3780.3,4.9248]
[1753122660552,0.55,3782.0,3781.1,2.64472432]
[1753122660785,0.02639636,3781.9,3781.2,0.73127243]
[1753122660950,0.02639636,3782.0,3781.3,1.25204593]
[1753122661153,0.02639636,3783.1,3782.2,2.64393245]
[1753122661375,0.806,3783.3,3782.3,0.7588]
[1753122661591,1.23731703,3783.2,3782.4,0.4668]
[1753122662393,2.64333483,3783.1,3782.4,0.4668]
[1753122662697,0.02639636,3783.0,3782.3,0.7588]
[1753122663010,2.64373563,3782.6,3782.0,0.4668]
[1753122663189,0.02639636,3782.5,3782.0,0.4668]
[1753122663358,0.02639636,3782.5,3781.8,0.7588]
[1753122663693,0.132,3782.7,3782.1,0.132]
[1753122663985,0.02639636,3782.6,3782.1,0.132]
[1753122664154,0.15839636,3782.7,3782.2,0.4668]
[1753122664355,0.15839636,3782.7,3782.3,0.4668]
[1753122664756,0.132,3782.7,3782.3,0.4668]
[1753122664960,0.02639636,3782.6,3782.3,0.4668]
[1753122665366,0.132,3782.7,3782.4,0.4668]
[1753122666259,0.02639636,3782.6,3782.4,0.4668]
[1753122666562,0.132,3782.7,3782.6,2.64368423]
[1753122667053,0.20023232,3783.2,3782.6,2.64368423]
[1753122667054,0.132,3783.0,3782.6,3.11048052]
[1753122667259,0.132,3783.0,3782.7,3.11036037]
[1753122667480,0.132,3783.0,3782.8,0.4668]
[1753122667679,0.12268753,3784.3,3782.8,1.14685317]
[1753122667893,0.132,3783.5,3782.9,0.4668]
[1753122668088,0.132,3783.7,3783.2,2.64325984]
[1753122668384,0.132,3783.7,3783.3,0.4668]
[1753122668758,2.64305537,3783.5,3783.0,4.167]
[1753122668991,0.15839636,3783.4,3783.0,4.167]
[1753122669361,2.80154676,3783.4,3782.8,4.7658]
[1753122669657,2.64345955,3783.0,3782.8,0.5988]
[1753122669861,0.02639636,3782.9,3782.4,0.5988]
[1753122670067,2.64347924,3782.9,3782.4,0.132]
[1753122670408,0.132,3782.6,3782.3,0.7615]
[1753122670607,0.132,3782.6,3782.4,0.4668]
[1753122670768,0.02639636,3783.1,3782.4,0.4668]
[1753122670968,0.132,3783.0,3782.4,0.4668]
[1753122671164,0.02639636,3783.2,3782.5,0.02643754]
[1753122671369,0.132,3783.4,3782.8,0.132]
[1753122671606,0.132,3783.4,3782.3,0.7615]
[1753122671607,3.193407,3783.0,3782.3,0.7615]
[1753122671778,0.132,3782.7,3782.3,0.7615]
[1753122672075,0.132,3782.7,3782.4,4.6348]
[1753122672263,0.132,3782.7,3782.5,0.4668]
[1753122672799,0.02639636,3782.8,3782.6,3.11047917]
[1753122673101,0.7958,3783.3,3782.6,3.11047917]
[1753122673102,2.77547358,3783.0,3782.6,0.4668]
[1753122673304,2.77547358,3783.0,3782.4,4.168]
[1753122673305,0.02639636,3782.9,3782.7,0.4668]
[1753122673596,0.02639636,3782.9,3782.8,0.4668]
[1753122674169,0.132,3783.0,3782.8,0.4668]
[1753122674370,0.132,3783.0,3782.9,0.4668]
[1753122674680,2.64269647,3784.1,3782.9,0.4668]
[1753122674887,0.132,3783.7,3783.1,0.7696]
[1753122675089,0.132,3783.7,3783.2,0.4668]
[1753122675286,0.20150431,3783.8,3783.3,6.94214752]
[1753122675492,3.132,3783.9,3783.4,0.4668]
[1753122675696,0.02639636,3783.8,3783.5,0.4668]
[1753122676207,3.32508469,3783.5,3783.4,4.167]
[1753122676385,6.19308469,3783.5,3782.7,0.02643614]
[1753122676583,2.77521116,3783.3,3782.8,4.167]
[1753122676989,0.132,3783.3,3782.9,4.167]
[1753122677194,0.132,3783.3,3782.9,4.6106]
[1753122677809,0.132,3783.3,3782.9,7.25402659]
[1753122678011,3.0,3783.5,3783.0,0.4436]
[1753122678214,3.0,3783.5,3782.9,4.167]
[1753122678215,3.0,3783.5,3783.2,0.132]
[1753122678517,0.02639636,3784.9,3784.2,2.64251709]
[1753122678708,0.02639636,3785.1,3784.5,2.64235698]
[1753122678887,0.02639636,3785.1,3784.6,0.4436]
[1753122679090,0.002,3785.3,3784.6,0.4436]
[1753122679417,3.0,3785.0,3784.7,4.169]
[1753122679610,0.02639636,3784.9,3784.7,4.169]
[1753122680020,0.02639636,3785.1,3784.7,4.169]
[1753122680221,0.02639636,3785.1,3784.8,0.4436]
[1753122680392,0.57639636,3785.2,3784.8,0.4436]
[1753122680594,0.02639636,3785.2,3784.7,4.169]
[1753122680791,0.002,3785.3,3784.9,0.4436]
[1753122680993,0.002,3785.3,3785.0,2.6420045]
[1753122681187,0.002,3785.3,3785.0,0.4436]
[1753122681708,3.002,3785.3,3785.0,0.4436]
[1753122682220,3.002,3785.3,3785.1,4.6126]
[1753122682994,0.002,3785.3,3785.1,4.6126]
[1753122683395,0.002,3785.3,3785.1,4.169]
[1753122683715,0.002,3785.3,3785.2,3.08546832]
[1753122683915,0.002,3785.3,3785.2,0.47001868]
[1753122684113,0.002,3785.3,3785.2,7.277887]
[1753122684301,0.002,3785.3,3785.2,4.6096]
[1753122684504,0.002,3785.3,3784.7,1.2127]
[1753122684505,2.64384977,3785.3,3784.7,1.2127]
[1753122684837,3.196818,3785.2,3784.8,4.167]
[1753122685055,2.64198666,3785.1,3784.8,4.167]
[1753122685269,2.64201609,3785.0,3784.8,4.167]
[1753122685392,2.64207772,3784.9,3784.8,4.167]
[1753122685829,0.55494831,3785.2,3784.8,4.167]
[1753122686038,2.64194373,3785.1,3784.8,4.167]
[1753122686735,2.64386015,3785.3,3784.9,0.4436]
[1753122686899,2.64194178,3785.1,3784.9,0.4436]
[1753122687098,2.66829008,3785.2,3784.9,0.4436]
[1753122687600,2.64194351,3785.1,3784.9,0.4436]
[1753122687944,2.64200792,3785.0,3784.9,0.4436]
[1753122688096,2.64200792,3785.0,3784.4,0.02642426]
[1753122688297,2.6420942,3784.9,3784.6,0.132]
[1753122688739,0.15839636,3785.2,3784.6,0.132]
[1753122688898,2.64214753,3784.8,3784.7,4.166]
[1753122689229,2.800481,3784.9,3784.7,4.166]
[1753122689425,2.64214753,3784.8,3784.3,0.92752496]
[1753122689730,0.15839636,3784.9,3784.4,4.166]
[1753122689920,0.15839636,3784.9,3784.5,0.4436]